lending/lending_fUSD_20240605
["ID","MTS","AMOUNT","RATE_DAILY","PERIOD"]
[328611520,1717608643508,-150.0,0.00029462,2]
[328611521,1717608643517,-161.28726099,0.00029468,15]
[328611522,1717608643526,-150.5,0.0002947,15]
[328611523,1717608643535,-250.0,0.0002947,15]
[328611524,1717608643544,-150.5,0.0002947,15]
[328611525,1717608643556,-153.45731663,0.0002947,2]
[328611526,1717608643565,-151.47,0.00029474,2]
[328611527,1717608643583,-10478.04692218,0.00029478,2]
[328611528,1717608643595,-500.0,0.00029478,2]
[328611529,1717608643604,-500.0,0.00029478,4]
[328611530,1717608643615,-500.0,0.00029478,4]
[328611531,1717608643625,-811.14,0.00029478,4]
[328611532,1717608643634,-1130.73,0.00029478,4]
[328611533,1717608643646,-4189.17,0.00029478,4]
[328611534,1717608643656,-500.0,0.00029478,4]
[328611535,1717608643667,-500.0,0.00029478,4]
[328611536,1717608643677,-533.38535098,0.00029478,4]
[328611537,1717608643687,-500.0,0.00029478,4]
[328611538,1717608643698,-500.0,0.00029478,4]
[328611539,1717608643708,-1724.13,0.00029478,4]
[328611540,1717608643717,-4572.24,0.00029478,4]
[328611541,1717608643728,-500.0,0.00029478,4]
[328611542,1717608643739,-994.39,0.00029478,4]
[328611543,1717608643749,-500.0,0.00029478,4]
[328611544,1717608643759,-500.0,0.00029478,4]
[328611545,1717608643769,-836.8,0.00029478,4]
[328611546,1717608643782,-2033.86,0.00029478,4]
[328611547,1717608643791,-500.0,0.00029478,4]
[328611548,1717608643802,-573.49909513,0.00029478,4]
[328611549,1717608643813,-527.67,0.00029478,4]
[328611550,1717608643822,-500.0,0.00029478,4]
[328611551,1717608643833,-2738.33594916,0.00029479,2]
[328611552,1717608643843,-150.5,0.0002948,15]
[328611553,1717608643856,-250.0,0.0002948,15]
[328611554,1717608643866,-262.0,0.0002948,15]
[328611555,1717608643876,-150.5,0.0002948,15]
[328611556,1717608643886,-159.21109873,0.00029482,2]
[328611557,1717608643895,-1000.0,0.00029484,2]
[328611558,1717608643906,-1000.0,0.00029484,2]
[328611559,1717608643916,-1000.0,0.00029484,2]
[328611560,1717608643927,-182.25747965,0.00029484,2]
[328611561,1717608643939,-500.0,0.00029484,2]
[328611562,1717608643950,-500.0,0.00029484,4]
[328611563,1717608643961,-811.14,0.00029484,4]
[328611564,1717608643971,-4189.17,0.00029484,4]
[328611565,1717608643981,-1724.13,0.00029484,4]
[328611566,1717608643991,-500.0,0.00029484,4]
[328611567,1717608644002,-500.0,0.00029484,4]
[328611568,1717608644011,-816.55,0.00029484,4]
[328611569,1717608644020,-2450.24,0.00029484,4]
[328611570,1717608644030,-683.26,0.00029484,4]
[328611571,1717608644039,-150.0,0.00029485,10]
[328611572,1717608644051,-494.0002994,0.00029485,2]
[328611573,1717608644060,-500.0,0.00029485,4]
[328611574,1717608644070,-500.0,0.00029485,4]
[328611575,1717608644079,-811.14,0.00029485,4]
[328611576,1717608644090,-1130.73,0.00029485,4]
[328611577,1717608644100,-4189.17,0.00029485,4]
[328611578,1717608644110,-345.88687334,0.00029485,4]
[328611579,1717608644119,-500.0,0.00029485,4]
[328611580,1717608644129,-500.0,0.00029485,4]
[328611581,1717608644140,-500.0,0.00029485,4]
[328611582,1717608644149,-1724.13,0.00029485,4]
[328611583,1717608644159,-4572.24,0.00029485,4]
[328611584,1717608644169,-500.0,0.00029485,4]
[328611585,1717608644179,-994.39,0.00029485,4]
[328611586,1717608644188,-500.0,0.00029485,4]
[328611587,1717608644197,-500.0,0.00029485,4]
[328611588,1717608644210,-836.8,0.00029485,4]
[328611589,1717608644220,-500.0,0.00029485,4]
[328611590,1717608644229,-500.0,0.00029485,4]
[328611591,1717608644239,-2033.86,0.00029485,4]
[328611592,1717608644249,-500.0,0.00029485,4]
[328611593,1717608644259,-527.67,0.00029485,4]
[328611594,1717608644269,-500.0,0.00029485,4]
[328611595,1717608644278,-150.0,0.00029486,2]
[328611596,1717608644287,-173.475,0.00029486,7]
[328611597,1717608644298,-173.475,0.00029486,7]
[328611598,1717608644308,-151.0,0.00029486,7]
[328611599,1717608644317,-322.94585484,0.00029487,2]
[328611600,1717608644327,-168.00484702,0.00029488,2]
[328611601,1717608644336,-244.63622692,0.00029489,2]
[328611602,1717608644346,-150.5,0.0002949,15]
[328611603,1717608644355,-250.0,0.0002949,15]
[328611604,1717608644366,-150.5,0.0002949,15]
[328611605,1717608644375,-150.5,0.0002949,15]
[328611606,1717608644385,-244.63622692,0.0002949,2]
[328611607,1717608644394,-150.0,0.00029495,2]
[328611608,1717608644404,-796.05549365,0.00029497,2]
[328611609,1717608644414,-150.0,0.00029498,10]
[328611610,1717608644424,-208.72501019,0.00029498,2]
[328611611,1717608644433,-3921.88144094,0.00029498,2]
[328611612,1717608644443,-500.0,0.00029498,2]
[328611613,1717608644453,-500.0,0.00029498,4]
[328611614,1717608644463,-500.0,0.00029498,4]
[328611615,1717608644472,-500.0,0.00029498,4]
[328611616,1717608644482,-811.14,0.00029498,4]
[328611617,1717608644492,-1130.73,0.00029498,4]
[328611618,1717608644501,-4189.17,0.00029498,4]
[328611619,1717608644511,-500.0,0.00029498,4]
[328611620,1717608644521,-500.0,0.00029498,4]
[328611621,1717608644530,-500.0,0.00029498,4]
[328611622,1717608644540,-500.0,0.00029498,4]
[328611623,1717608644551,-1724.13,0.00029498,4]
[328611624,1717608644561,-4572.24,0.00029498,4]
[328611625,1717608644571,-500.0,0.00029498,4]
[328611626,1717608644580,-994.39,0.00029498,4]
[328611627,1717608644590,-500.0,0.00029498,4]
[328611628,1717608644599,-500.0,0.00029498,4]
[328611629,1717608644608,-836.8,0.00029498,4]
[328611630,1717608644618,-500.0,0.00029498,4]
[328611631,1717608644627,-500.0,0.00029498,4]
[328611632,1717608644637,-500.0,0.00029498,4]
[328611633,1717608644646,-2033.86,0.00029498,4]
[328611634,1717608644658,-500.0,0.00029498,4]
[328611635,1717608644668,-500.0,0.00029498,4]
[328611636,1717608644677,-816.55,0.00029498,4]
[328611637,1717608644687,-2450.24,0.00029498,4]
[328611638,1717608644696,-527.67,0.00029498,4]
[328611639,1717608644706,-562.56,0.00029498,4]
[328611640,1717608644715,-683.26,0.00029498,4]
[328611641,1717608644725,-902.81838955,0.00029499,2]
[328611642,1717608644734,-257.78539375,0.00029499,2]
[328611643,1717608644744,-1046.18219115,0.00029499,2]
[328611644,1717608644755,-2000.0,0.00029499,2]
[328611645,1717608644768,-200.0,0.00029499,2]
[328611646,1717608644778,-500.0,0.00029499,2]
[328611647,1717608644787,-511.91848941,0.00029499,2]
[328611648,1717608644798,-150.0,0.00029499,2]
[328611649,1717608644809,-500.0,0.00029499,2]
[328611650,1717608644819,-500.0,0.00029499,2]
[328611651,1717608644828,-500.0,0.00029499,2]
[328611652,1717608644838,-500.0,0.00029499,2]
[328611653,1717608644849,-500.0,0.00029499,2]
[328611654,1717608644859,-500.0,0.00029499,2]
[328611655,1717608644868,-500.0,0.00029499,2]
[328611656,1717608644878,-500.0,0.00029499,2]
[328611657,1717608644887,-500.0,0.00029499,2]
[328611658,1717608644897,-500.0,0.00029499,2]
[328611659,1717608644906,-500.0,0.00029499,2]
[328611660,1717608644916,-154.78469491,0.00029499,2]
[328611661,1717608644926,-500.0,0.00029499,4]
[328611662,1717608644936,-500.0,0.00029499,4]
[328611663,1717608644946,-500.0,0.00029499,4]
[328611664,1717608644957,-526.76664264,0.00029499,4]
[328611665,1717608644967,-500.0,0.00029499,4]
[328611666,1717608644976,-445.55367252,0.00029499,4]
[328611667,1717608644985,-500.0,0.00029499,4]
[328611668,1717608644995,-500.0,0.00029499,4]
[328611669,1717608645004,-500.0,0.00029499,4]
[328611670,1717608645013,-500.0,0.00029499,4]
[328611671,1717608645022,-271.90692155,0.00029499,4]
[328611672,1717608645031,-811.14,0.00029499,4]
[328611673,1717608645041,-811.14,0.00029499,4]
[328611674,1717608645052,-811.14,0.00029499,4]
[328611675,1717608645061,-811.14,0.00029499,4]
[328611676,1717608645072,-811.14,0.00029499,4]
[328611678,1717608645082,-811.14,0.00029499,4]
[328611679,1717608645092,-811.14,0.00029499,4]
[328611680,1717608645103,-1130.73,0.00029499,4]
[328611681,1717608645113,-1130.73,0.00029499,4]
[328611682,1717608645122,-1130.73,0.00029499,4]
[328611683,1717608645131,-1130.73,0.00029499,4]
[328611684,1717608645140,-1130.73,0.00029499,4]
[328611685,1717608645150,-1130.73,0.00029499,4]
[328611686,1717608645159,-1130.73,0.00029499,4]
[328611687,1717608645168,-1130.73,0.00029499,4]
[328611688,1717608645177,-4189.17,0.00029499,4]
[328611689,1717608645186,-4189.17,0.00029499,4]
[328611690,1717608645196,-4189.17,0.00029499,4]
[328611691,1717608645206,-4189.17,0.00029499,4]
[328611692,1717608645216,-4189.17,0.00029499,4]
[328611693,1717608645225,-4189.17,0.00029499,4]
[328611694,1717608645234,-4189.17,0.00029499,4]
[328611695,1717608645244,-500.0,0.00029499,4]
[328611696,1717608645254,-500.0,0.00029499,4]
[328611697,1717608645263,-500.0,0.00029499,4]
[328611698,1717608645272,-500.0,0.00029499,4]
[328611699,1717608645282,-500.0,0.00029499,4]
[328611700,1717608645292,-500.0,0.00029499,4]
[328611701,1717608645302,-500.0,0.00029499,4]
[328611702,1717608645312,-500.0,0.00029499,4]
[328611703,1717608645321,-500.0,0.00029499,4]
[328611704,1717608645330,-532.92592195,0.00029499,4]
[328611705,1717608645340,-500.0,0.00029499,4]
[328611706,1717608645349,-500.0,0.00029499,4]
[328611707,1717608645358,-500.0,0.00029499,4]
[328611708,1717608645367,-500.0,0.00029499,4]
[328611709,1717608645376,-500.0,0.00029499,4]
[328611710,1717608645386,-500.0,0.00029499,4]
[328611711,1717608645395,-500.0,0.00029499,4]
[328611712,1717608645405,-500.0,0.00029499,4]
[328611713,1717608645414,-500.0,0.00029499,4]
[328611714,1717608645424,-589.31057117,0.00029499,4]
[328611715,1717608645433,-1724.13,0.00029499,4]
[328611716,1717608645443,-1724.13,0.00029499,4]
[328611717,1717608645452,-1724.13,0.00029499,4]
[328611718,1717608645462,-1724.13,0.00029499,4]
[328611719,1717608645471,-1724.13,0.00029499,4]
[328611721,1717608645480,-1724.13,0.00029499,4]
[328611722,1717608645490,-1724.13,0.00029499,4]
[328611723,1717608645499,-4572.24,0.00029499,4]
[328611724,1717608645509,-4572.24,0.00029499,4]
[328611725,1717608645518,-4572.24,0.00029499,4]
[328611726,1717608645527,-4572.24,0.00029499,4]
[328611727,1717608645537,-4572.24,0.00029499,4]
[328611728,1717608645748,-4572.24,0.00029499,4]
[328611729,1717608645761,-4572.24,0.00029499,4]
[328611730,1717608645776,-4572.24,0.00029499,4]
[328611731,1717608645787,-500.0,0.00029499,4]
[328611732,1717608645797,-500.0,0.00029499,4]
[328611733,1717608645807,-500.0,0.00029499,4]
[328611734,1717608645816,-198.47051846,0.00029499,4]
[328611735,1717608645825,-994.39,0.00029499,4]
[328611736,1717608645834,-994.39,0.00029499,4]
[328611737,1717608645843,-994.39,0.00029499,4]
[328611738,1717608645855,-994.39,0.00029499,4]
[328611739,1717608645864,-994.39,0.00029499,4]
[328611740,1717608645873,-994.39,0.00029499,4]
[328611741,1717608645882,-994.39,0.00029499,4]
[328611742,1717608645892,-994.39,0.00029499,4]
[328611743,1717608645901,-500.0,0.00029499,4]
[328611744,1717608645910,-500.0,0.00029499,4]
[328611745,1717608645919,-500.0,0.00029499,4]
[328611746,1717608645928,-500.0,0.00029499,4]
[328611747,1717608645937,-500.0,0.00029499,4]
[328611748,1717608645946,-500.0,0.00029499,4]
[328611749,1717608645956,-500.0,0.00029499,4]
[328611750,1717608645965,-185.7,0.00029499,4]
[328611751,1717608645974,-500.0,0.00029499,4]
[328611752,1717608645983,-500.0,0.00029499,4]
[328611753,1717608645992,-515.17104137,0.00029499,4]
[328611754,1717608646001,-151.0,0.00029499,7]
[328611755,1717608646011,-836.8,0.00029499,4]
[328611756,1717608646020,-836.8,0.00029499,4]
[328611757,1717608646029,-836.8,0.00029499,4]
[328611758,1717608646038,-836.8,0.00029499,4]
[328611759,1717608646049,-836.8,0.00029499,4]
[328611760,1717608646058,-836.8,0.00029499,4]
[328611761,1717608646067,-836.8,0.00029499,4]
[328611762,1717608646076,-836.8,0.00029499,4]
[328611763,1717608646085,-500.0,0.00029499,4]
[328611764,1717608646095,-500.0,0.00029499,4]
[328611765,1717608646104,-500.0,0.00029499,4]
[328611766,1717608646112,-500.0,0.00029499,4]
[328611767,1717608646121,-500.0,0.00029499,4]
[328611768,1717608646132,-500.0,0.00029499,4]
[328611769,1717608646142,-500.0,0.00029499,4]
[328611770,1717608646151,-500.0,0.00029499,4]
[328611771,1717608646160,-500.0,0.00029499,4]
[328611772,1717608646170,-500.0,0.00029499,4]
[328611773,1717608646180,-500.0,0.00029499,4]
[328611774,1717608646191,-547.348013,0.00029499,4]
[328611775,1717608646202,-500.0,0.00029499,4]
[328611776,1717608646212,-500.0,0.00029499,4]
[328611777,1717608646222,-2033.86,0.00029499,4]
[328611778,1717608646232,-500.0,0.00029499,4]
[328611779,1717608646243,-2033.86,0.00029499,4]
[328611780,1717608646252,-500.0,0.00029499,4]
[328611781,1717608646262,-2033.86,0.00029499,4]
[328611782,1717608646274,-500.0,0.00029499,4]
[328611783,1717608646283,-2033.86,0.00029499,4]
[328611784,1717608646292,-500.0,0.00029499,4]
[328611785,1717608646302,-2033.86,0.00029499,4]
[328611786,1717608646311,-500.0,0.00029499,4]
[328611787,1717608646321,-500.0,0.00029499,4]
[328611788,1717608646330,-2033.86,0.00029499,4]
[328611789,1717608646339,-2033.86,0.00029499,4]
[328611790,1717608646349,-2033.86,0.00029499,4]
[328611791,1717608646358,-500.0,0.00029499,4]
[328611792,1717608646367,-500.0,0.00029499,4]
[328611793,1717608646376,-500.0,0.00029499,4]
[328611794,1717608646385,-500.0,0.00029499,4]
[328611795,1717608646394,-500.0,0.00029499,4]
[328611796,1717608646404,-424.13,0.00029499,4]
[328611797,1717608646413,-640.41811352,0.00029499,4]
[328611798,1717608646422,-816.55,0.00029499,4]
[328611799,1717608646431,-816.55,0.00029499,4]
[328611800,1717608646441,-816.55,0.00029499,4]
[328611801,1717608646449,-816.55,0.00029499,4]
[328611802,1717608646459,-816.55,0.00029499,4]
[328611803,1717608646468,-816.55,0.00029499,4]
[328611804,1717608646477,-816.55,0.00029499,4]
[328611805,1717608646487,-816.55,0.00029499,4]
[328611806,1717608646496,-2450.24,0.00029499,4]
[328611807,1717608646505,-2450.24,0.00029499,4]
[328611808,1717608646514,-2450.24,0.00029499,4]
[328611809,1717608646523,-2450.24,0.00029499,4]
[328611810,1717608646533,-2450.24,0.00029499,4]
[328611811,1717608646543,-2450.24,0.00029499,4]
[328611812,1717608646553,-2450.24,0.00029499,4]
[328611813,1717608646562,-2450.24,0.00029499,4]
[328611814,1717608646571,-150.0,0.00029499,2]
[328611815,1717608646580,-527.67,0.00029499,4]
[328611816,1717608646589,-150.0,0.00029499,7]
[328611817,1717608646599,-527.67,0.00029499,4]
[328611818,1717608646608,-527.67,0.00029499,4]
[328611819,1717608646617,-527.67,0.00029499,4]
[328611820,1717608646626,-527.67,0.00029499,4]
[328611821,1717608646635,-527.67,0.00029499,4]
[328611822,1717608646644,-527.67,0.00029499,4]
[328611823,1717608646653,-527.67,0.00029499,4]
[328611824,1717608646663,-683.26,0.00029499,4]
[328611825,1717608646672,-683.26,0.00029499,4]
[328611826,1717608646682,-683.26,0.00029499,4]
[328611827,1717608646692,-683.26,0.00029499,4]
[328611828,1717608646701,-151.0,0.00029499,7]
[328611829,1717608646710,-683.26,0.00029499,4]
[328611830,1717608646719,-683.26,0.00029499,4]
[328611831,1717608646727,-683.26,0.00029499,4]
[328611832,1717608646736,-683.26,0.00029499,4]
[328611833,1717608646745,-1088266.94096039,0.000295,5]
[328611834,1717608646762,-9485.16157941,0.000295,5]
[328611835,1717608646828,-248.63887848,0.000295,5]
[328611836,1717608646839,-1268.42011833,0.000295,5]
[328611837,1717608646917,-152.0,0.0002938,5]
[328611838,1717608646926,-3072.94856905,0.000295,5]
[328611839,1717608646960,-188.55672582,0.00026574,2]
[328611840,1717608646970,-2100.0,0.00029499,2]
[328611841,1717608646980,-33460.94327418,0.000295,5]
[328611842,1717608647193,-0.02622442,0.000295,5]
[328611843,1717608647204,-105313.5590345,0.000295,5]
[328611844,1717608647216,-293.7897066,0.000295,5]
[328611845,1717608647238,-3944.42508153,0.000295,5]
[328611846,1717608647249,-549.81337909,0.000295,5]
[328611847,1717608647260,-151326.02886956,0.000295,5]
[328611848,1717608647271,-8127.91799056,0.000295,5]
[328611849,1717608647325,-258.43896573,0.000295,5]
[328611850,1717608652076,1000.0,0.00033622,60]
[328611851,1717608657384,226.57668191,0.00022394,2]
[328611852,1717608664897,1000.0,0.00033622,60]
[328611853,1717608668246,10099.12332429,0.000246,2]
[328611854,1717608668268,4900.87667571,0.000246,2]
[328611855,1717608674242,289.73525073,0.00022394,2]
[328611856,1717608677475,299.56956562,0.00022394,2]
[328611857,1717608678717,1000.0,0.00033622,60]
[328611858,1717608679368,20258.09102943,0.00022394,2]
[328611859,1717608679394,226.57668191,0.00022394,2]
[328611860,1717608680243,347.4441176,0.00022394,2]
[328611861,1717608688238,289.73525073,0.00022394,2]
[328611862,1717608691458,364.79448835,0.00022394,2]
[328611863,1717608691710,1000.0,0.00033622,30]
[328611864,1717608692237,348.32153392,0.00022394,2]
[328611865,1717608692651,591.04,0.00023996,2]
[328611866,1717608695390,20258.09102943,0.00022394,2]
[328611867,1717608701384,226.57668191,0.00022394,2]
[328611868,1717608704799,1037.0,0.00033622,30]
[328611869,1717608704832,1000.0,0.00033622,60]
[328611870,1717608710255,398.74185088,0.00022394,2]
[328611871,1717608711377,20258.09102943,0.00022394,2]
[328611872,1717608715429,1037.0,0.00033622,30]
[328611873,1717608717384,1000.0,0.00033622,30]
[328611874,1717608721390,226.57668191,0.00022394,2]
[328611875,1717608721892,168.99,0.00024384,2]
[328611877,1717608725884,1037.0,0.00033622,30]
[328611878,1717608730246,1000.0,0.00033622,120]
[328611879,1717608731386,11892.84098209,0.00022394,2]
[328611880,1717608736479,1037.0,0.00033622,30]
[328611881,1717608739405,226.57668191,0.00022394,2]
[328611882,1717608743076,1000.0,0.00033622,60]
[328611883,1717608747108,1037.0,0.00033622,30]
[328611884,1717608755907,1000.0,0.00033622,60]
[328611885,1717608757704,1037.0,0.00033622,30]
[328611886,1717608768505,1037.0,0.00033622,30]
[328611887,1717608768755,1000.0,0.00033622,30]
[328611888,1717608779087,1037.0,0.00033615,30]
[328611889,1717608781563,1000.0,0.00033615,60]
[328611890,1717608789797,1037.0,0.00033615,30]
[328611891,1717608794376,1000.0,0.00033615,60]
[328611892,1717608800501,1037.0,0.00033615,30]
[328611893,1717608807204,1000.0,0.00033615,30]
[328611894,1717608811170,1037.0,0.00033615,30]
[328611895,1717608820050,1000.0,0.00033615,120]
[328611896,1717608821831,1116.30233738,0.00033615,30]
[328611897,1717608823699,1998254.21393073,0.00014,2]
[328611898,1717608823731,70000.0,0.00014,2]
[328611899,1717608823757,20000.0,0.00014,2]
[328611900,1717608823782,2000000.0,0.00014,2]
[328611901,1717608823809,5246.0,0.00014,2]
[328611902,1717608823849,1226990.03042312,0.00014,2]
[328611903,1717608826190,214.11781551,0.00033615,30]
[328611904,1717608826380,481.28917382,0.00033615,30]
[328611905,1717608827378,359.70370016,0.00033615,30]
[328611906,1717608830107,831.38383718,0.00033615,30]
[328611907,1717608832878,1000.0,0.00033615,60]
[328611908,1717608838493,696.19472427,0.00033615,30]
[328611909,1717608841485,679.04749641,0.00033615,30]
[328611910,1717608843472,1131.68177072,0.00033615,30]
[328611911,1717608844613,5826.9957445,0.000118,2]
[328611912,1717608845695,1000.0,0.00033615,60]
[328611913,1717608854422,444.04639419,0.00033615,60]
[328611914,1717608857439,493.04761472,0.00033615,30]
[328611915,1717608858629,1000.0,0.00033615,60]
[328611916,1717608859070,367.07415421,0.00033615,30]
[328611917,1717608865177,814.3416483,0.00033615,30]
[328611918,1717608871445,859.92,0.00033615,60]
[328611919,1717608873028,822.13070473,0.00033615,30]
[328611920,1717608875270,657.37979145,0.00033615,30]
[328611921,1717608882349,614.44971656,0.00033615,120]
[328611922,1717608883149,884.97464818,0.00033615,30]
[328611923,1717608887037,155.36942487,0.00033615,30]
[328611924,1717608888846,509.55261134,0.00033615,30]
[328611925,1717608888877,196.71456763,0.00033615,30]
[328611926,1717608889287,914.85379229,0.00033615,30]
[328611927,1717608903163,1195.14898549,0.00033615,120]
[328611928,1717608905109,331.862192,0.00033615,30]
[328611929,1717608911912,914.21582536,0.00033615,30]
[328611930,1717608948867,690.0,0.00033615,30]
[328611931,1717608975865,856.25524779,0.00033615,120]
[328611932,1717608976906,755.28938126,0.00033615,30]
[328611933,1717608984286,595.40558497,0.00033615,30]
[328611934,1717608987666,1283.88693849,0.00033615,30]
[328611935,1717608990077,411.29465999,0.00033615,120]
[328611938,1717609006009,841.5122509,0.00033615,30]
[328611941,1717609026260,192.34866545,0.00033615,30]
[328611942,1717609028622,695.09840227,0.00033615,30]
[328611943,1717609028882,862.62012102,0.00033615,30]
[328611944,1717609029395,352.05588607,0.00033615,30]
[328611945,1717609030218,251.93851782,0.00033615,30]
[328611946,1717609030517,925.53188355,0.00033615,30]
[328611947,1717609031105,1260.41634881,0.00033615,30]
[328611948,1717609033193,1089.19342102,0.00033615,30]
[328611949,1717609033862,630.08523196,0.00033615,30]
[328611950,1717609034114,285.18316105,0.00033615,30]
[328611951,1717609036992,1630.14972813,0.00033615,120]
[328611952,1717609063995,190.0,0.00033615,30]
[328611953,1717609266644,1037.0,0.00033606,30]
[328611954,1717609277310,1037.0,0.00033606,30]
[328611955,1717609287897,1037.0,0.00033606,30]
[328611956,1717609298596,1037.0,0.00033606,30]
[328611957,1717609309502,1037.0,0.00033606,30]
[328611958,1717609320199,1037.0,0.00033606,30]
[328611959,1717609330871,1037.0,0.00033606,30]
[328611960,1717609341661,1037.0,0.00033606,30]
[328611961,1717609352257,1037.0,0.00033606,30]
[328611962,1717609362926,1037.0,0.00033606,30]
[328611963,1717609545131,690.0,0.00033681,30]
[328611964,1717609636172,-525.0,0.0002,18]
[328611965,1717609636201,-525.0,0.0002,10]
[328611966,1717609636226,-160.93,0.00020556,2]
[328611967,1717609636247,-653.0,0.00021,2]
[328611968,1717609636269,-1863.0,0.000211,2]
[328611969,1717609636291,-171.03,0.00021291,2]
[328611970,1717609636313,-2583.80029899,0.00022394,2]
[328611971,1717609642112,-722.2635744,0.00022394,2]
[328611972,1717609642136,-289.58953642,0.00022394,2]
[328611973,1717609642157,-339.79,0.00022562,2]
[328611974,1717609642177,-499.99,0.00022562,2]
[328611975,1717609642199,-3700.81825935,0.00023599,2]
[328611976,1717609642219,-4505.22755488,0.000236,2]
[328611977,1717609718277,150.0,0.00033682,30]
[328611985,1717609750117,-226.57668191,0.000201,2]
[328611986,1717609750137,-54495.77931809,0.000236,2]
[328611987,1717609752157,-22096.16713578,0.000236,2]
[328611988,1717609752180,-785.26112817,0.00024,3]
[328611989,1717609752202,-150.99,0.00024,2]
[328611990,1717609752224,-589.86,0.00024126,2]
[328611991,1717609752246,-158.78,0.00024384,2]
[328611992,1717609752266,-914.92479447,0.00025,30]
[328611993,1717609752286,-2751.0,0.00025536,2]
[328611994,1717609752306,-250.0,0.00025914,2]
[328611995,1717609752327,-329.79394158,0.00025982,2]
[328611998,1717609763122,226.57668191,0.00022394,2]
[328612002,1717609783083,226.57668191,0.00022394,2]
[328612004,1717609798657,156.23,0.00024384,2]
[328612005,1717609801074,226.57668191,0.00022394,2]
[328612007,1717609825073,226.57668191,0.00022394,2]
[328612009,1717609831964,-150.0,0.00025982,2]
[328612010,1717609831974,-129.69657276,0.00025982,2]
[328612011,1717609831986,-20.30342724,0.00025982,2]
[328612012,1717609831996,-216.64624949,0.00025982,2]
[328612013,1717609832005,-861.88802357,0.00025982,2]
[328612014,1717609832017,-2729.70803485,0.00025982,2]
[328612015,1717609832026,-1065.63,0.00026044,2]
[328612016,1717609832035,-3054.64283468,0.00026112,2]
[328612017,1717609832046,-350.0,0.00026112,2]
[328612018,1717609832057,-2246.56936434,0.00026112,2]
[328612019,1717609832068,-387.0989336,0.00026112,2]
[328612020,1717609832079,-858.55886738,0.00026112,2]
[328612021,1717609832088,-14857.32903243,0.0002616,2]
[328612022,1717609832100,-1283.55496757,0.0002616,2]
[328612023,1717609832109,-499.99,0.0002616,2]
[328612024,1717609832118,-589.86,0.0002639,2]
[328612025,1717609832127,-266.45,0.0002673,2]
[328612026,1717609832136,-167.0,0.00026833,2]
[328612027,1717609832145,-882.71956304,0.00027,2]
[328612028,1717609832155,-2010.60105363,0.000272,2]
[328612029,1717609832164,-250.0,0.00027341,2]
[328612030,1717609832174,-1000.0,0.00027522,2]
[328612032,1717609832189,-157.64,0.00027578,2]
[328612033,1717609832198,-171.91,0.00028201,2]
[328612034,1717609832207,-173.94,0.00028349,2]
[328612035,1717609832218,-589.86,0.00028653,2]
[328612036,1717609832227,-1065.63,0.00028784,2]
[328612037,1717609832237,-600.0,0.000289,10]
[328612038,1717609832248,-200.0,0.000289,10]
[328612039,1717609832259,-1804.27743576,0.00029,2]
[328612040,1717609832271,-2016.96978105,0.00029,2]
[328612041,1717609832279,-1200.0,0.00029,10]
[328612042,1717609832288,-500.0,0.00029,10]